Workbook

Sheet Introduction
B3: KSU-Silage Value
B5: A spreadsheet program to estimate the value of corn or grain sorghum silage based upon the price of grain, harvesting costs, and nutrients removed.
L8: Version-7.8.2016
B27: CONCEPTUAL APPROACH:
B28: The concept behind the formulas in this spreadsheet is to find the value of silage where the crop producer is indifferent between harvesting the silage as grain or silage. This approach does not factor in potential value associated with maintaining residue other than nutrient removal and thus if erosion is a concern the values may underestimate what is needed for the silage.
B32: Because of the approach used here, calculated values may not be appropriate for drought stressed or hail damaged corn where grain harvest is not an option. However, calculated values can still help producers determine upper and lower bounds as to what might be reasonable. Additionally, what a livestock producer is willing to pay, based on costs of alternative feedstuffs or harvesting costs if they are buying silage "in the field", are not factored into the calculations.
B37: INSTRUCTIONS FOR THE USER:
B38: In the various sheets all blue numbers are inputs and all black numbers are calculated from these inputs. The spreadsheet automatically recalculates every time an additional input is entered. Thus, it is important to wait until all data have been entered and reviewed before interpreting any of the calculated results (i.e., black numbers).
B43: FOR MORE INFORMATION:
B45: With Questions Contact: | H45: Originally Developed by:
B47: Robin Reid | H47: Kevin Dhuyvetter
B48: Extension Associate | H48: Former Agricultural Economist
B49: Kansas State University | H49: Kansas State University
B50: 785-532-0964
B51: robinreid@ksu.edu
B53: Copyright 2016 AgManager.info, K-State Department of Agricultural Economics

Sheet Corn
B2: Valuing Corn Silage
B4: Grain yield in bushels | G4: 175 | I4: Nutrient removal | K4: N | L4: P2O5 | M4: K2O
B5: Moisture content of grain at harvest | G5: 0.155 | I5: Grain, lbs/bu | K5: 0.8 | L5: 0.33 | M5: 0.26
B6: Grain yield in pounds | G6: =G4*56 -> 9800 | I6: Silage, lbs/ton | K6: 11 | L6: 3.2 | M6: 8.7
B7: Grain yield in pounds @ 100% DM | G7: =G6*(1-G5) -> 8281 | I7: Grain, lbs/acre | K7: =$G4*K5 -> 140 | L7: =$G4*L5 -> 57.75 | M7: =$G4*M5 -> 45.5
I8: Silage, lbs/acre | K8: =$G16*K6 -> 276.8723404 | L8: =$G16*L6 -> 80.54468085 | M8: =$G16*M6 -> 218.9808511
B9: Percent grain in silage (DM) | G9: 0.47 | I9: Price, $/lb | K9: 0.6 | L9: 0.65 | M9: 0.4
B10: Percent forage in silage (DM) | G10: =1-G9 -> 0.53 | I10: Percent to include | K10: 0 | L10: 1 | M10: 0.25
B11: Percent DM in silage at harvest | G11: 0.35 | I11: Difference in cost, $/ac | K11: =(K7-K8)*K9*K10 -> 0 | L11: =(L7-L8)*L9*L10 -> -14.81654255 | M11: =(M7-M8)*M9*M10 -> -17.34808511 | N11: =SUM(K11:M11) -> -32.16462766
B13: Silage yield in pounds | G13: =G6/G9 -> 20851.06383 | I13: Harvest & hauling for grain, $/bu | N13: 0.4
B14: Silage yield in pounds @ 100% DM | G14: =G7/G9 -> 17619.14894 | I14: Harvest & hauling charge for silage, $/ton | N14: 8.5
B15: Silage yield in pounds as harvested | G15: =G14/G11 -> 50340.42553 | I15: Difference in grain preharvest non-fertilizer VC/ac | N15: 0
B16: Silage yield in tons as harvested | G16: =G15/2000 -> 25.17021277
B17: Bushels of Corn per ton of silage | G17: =G4/G16 -> 6.952662722
B18: Tons of silage per bushel of Corn | G18: =G16/G4 -> 0.1438297872
B22: Price of Corn Silage when BUYER Pays for Harvesting Cost | I22: Price of Corn Silage when SELLER Pays for Harvesting Cost
B24: Corn | D24: Percent DM in silage | G24: Factor | I24: =B24 -> Corn | K24: Percent DM in silage | N24: Factor
B25: Price | C25: 0.3 | D25: =C25+$G37 -> 0.325 | E25: =D25+$G37 -> 0.35 | F25: =E25+$G37 -> 0.375 | G25: ="@ "&FIXED(D25*100,1)&"%" -> @ 32.5% | I25: Price | J25: =C25 -> 0.3 | K25: =D25 -> 0.325 | L25: =E25 -> 0.35 | M25: =F25 -> 0.375 | N25: ="@ "&FIXED(K25*100,1)&"%" -> @ 32.5%
B26: ($/bu) | C26: Silage Price ($/ton) | G26: DM | I26: ($/bu) | J26: Silage Price ($/ton) | N26: DM
B27: 3 | C27: =($G$4*$B27-($N$11+$N$15)-$G$4*$N$13)/($G$14/C$25/2000) -> 16.58983516 | D27: 17.97232143 | E27: 19.35480769 | F27: 20.73729396 | G27: =D27/B27 -> 5.99077381 | I27: 3 | J27: =($G$4*$I27-($N$11+$N$15)-$G$4*$N$13+$N$14*$G$14/J$25/2000)/($G$14/J$25/2000) -> 25.08983516 | K27: 26.47232143 | L27: 27.85480769 | M27: 29.23729396 | N27: =K27/I27 -> 8.824107143
B28: =B27+N$37 -> 3.25 | C28: 18.07969146 | D28: 19.58633242 | E28: 21.09297337 | F28: 22.59961433 | G28: 6.026563821 | I28: 3.25 | J28: 26.57969146 | K28: 28.08633242 | L28: 29.59297337 | M28: 31.09961433 | N28: 8.641948436
B29: 3.5 | C29: 19.56954776 | D29: 21.20034341 | E29: 22.83113905 | F29: 24.4619347 | G29: 6.057240973 | I29: 3.5 | J29: 28.06954776 | K29: 29.70034341 | L29: 31.33113905 | M29: 32.9619347 | N29: 8.485812402
B30: 3.75 | C30: 21.05940406 | D30: 22.8143544 | E30: 24.56930473 | F30: 26.32425507 | G30: 6.083827839 | I30: 3.75 | J30: 29.55940406 | K30: 31.3143544 | L30: 33.06930473 | M30: 34.82425507 | N30: 8.350494505
B31: 4 | C31: 22.54926036 | D31: 24.42836538 | E31: 26.30747041 | F31: 28.18657544 | G31: 6.107091346 | I31: 4 | J31: 31.04926036 | K31: 32.92836538 | L31: 34.80747041 | M31: 36.68657544 | N31: 8.232091346
B32: 4.25 | C32: 24.03911665 | D32: 26.04237637 | E32: 28.04563609 | F32: 30.04889582 | G32: 6.12761797 | I32: 4.25 | J32: 32.53911665 | K32: 34.54237637 | L32: 36.54563609 | M32: 38.54889582 | N32: 8.12761797
B33: 4.5 | C33: 25.52897295 | D33: 27.65638736 | E33: 29.78380178 | F33: 31.91121619 | G33: 6.145863858 | I33: 4.5 | J33: 34.02897295 | K33: 36.15638736 | L33: 38.28380178 | M33: 40.41121619 | N33: 8.034752747
B34: 4.75 | C34: 27.01882925 | D34: 29.27039835 | E34: 31.52196746 | F34: 33.77353656 | G34: 6.162189127 | I34: 4.75 | J34: 35.51882925 | K34: 37.77039835 | L34: 40.02196746 | M34: 42.27353656 | N34: 7.951662811
B35: 5 | C35: 28.50868555 | D35: 30.88440934 | E35: 33.26013314 | F35: 35.63585693 | G35: 6.176881868 | I35: 5 | J35: 37.00868555 | K35: 39.38440934 | L35: 41.76013314 | M35: 44.13585693 | N35: 7.876881868
B36: 5.25 | C36: 29.99854184 | D36: 32.49842033 | E36: 34.99829882 | F36: 37.4981773 | G36: 6.190175301 | I36: 5.25 | J36: 38.49854184 | K36: 40.99842033 | L36: 43.49829882 | M36: 45.9981773 | N36: 7.80922292
B37: Increment for Percent DM in silage | G37: 0.025 | I37: Increment for Corn Price ($/bu) | N37: 0.25
B39: Price of Corn Silage when BUYER Pays for Harvesting Cost | I39: Price of Corn Silage when SELLER Pays for Harvesting Cost
B41: =B24 -> Corn | D41: Percent grain (DM) in silage | I41: =B41 -> Corn | K41: Percent grain (DM) in silage
B42: Price | C42: =D42-$G54 -> 0.42 | D42: =E42-$G54 -> 0.445 | E42: =G9 -> 0.47 | F42: =E42+G54 -> 0.495 | G42: =F42+G54 -> 0.52 | I42: =B42 -> Price | J42: =C42 -> 0.42 | K42: =D42 -> 0.445 | L42: =E42 -> 0.47 | M42: =F42 -> 0.495 | N42: =G42 -> 0.52
B43: ($/bu) | C43: Silage Price ($/ton) | I43: =B43 -> ($/bu) | J43: Silage Price ($/ton)
B44: 3 | C44: =($G$4*$B44-($N$11+$N$15)-$G$4*$N$13)/($G$7/C$42/$G$11/2000) -> 17.2957856 | D44: 18.32529664 | E44: 19.35480769 | F44: 20.38431874 | G44: 21.41382979 | I44: =I27 -> 3 | J44: =($G$4*$I44-($N$11+$N$15)-$G$4*$N$13+$N$14*$G$7/C$42/$G$11/2000)/($G$7/J$42/$G$11/2000) -> 25.7957856 | K44: =($G$4*$I44-($N$11+$N$15)-$G$4*$N$13+$N$14*$G$7/D$42/$G$11/2000)/($G$7/K$42/$G$11/2000) -> 26.82529664 | L44: =($G$4*$I44-($N$11+$N$15)-$G$4*$N$13+$N$14*$G$7/E$42/$G$11/2000)/($G$7/L$42/$G$11/2000) -> 27.85480769 | M44: =($G$4*$I44-($N$11+$N$15)-$G$4*$N$13+$N$14*$G$7/F$42/$G$11/2000)/($G$7/M$42/$G$11/2000) -> 28.88431874 | N44: =($G$4*$I44-($N$11+$N$15)-$G$4*$N$13+$N$14*$G$7/G$42/$G$11/2000)/($G$7/N$42/$G$11/2000) -> 29.91382979
B45: 3.25 | C45: 18.84904004 | D45: 19.9710067 | E45: 21.09297337 | F45: 22.21494004 | G45: 23.33690671 | I45: 3.25 | J45: 27.34904004 | K45: 28.4710067 | L45: 29.59297337 | M45: 30.71494004 | N45: 31.83690671
B46: 3.5 | C46: 20.40229447 | D46: 21.61671676 | E46: 22.83113905 | F46: 24.04556134 | G46: 25.25998363 | I46: 3.5 | J46: 28.90229447 | K46: 30.11671676 | L46: 31.33113905 | M46: 32.54556134 | N46: 33.75998363
B47: 3.75 | C47: 21.95554891 | D47: 23.26242682 | E47: 24.56930473 | F47: 25.87618265 | G47: 27.18306056 | I47: 3.75 | J47: 30.45554891 | K47: 31.76242682 | L47: 33.06930473 | M47: 34.37618265 | N47: 35.68306056
B48: 4 | C48: 23.50880335 | D48: 24.90813688 | E48: 26.30747041 | F48: 27.70680395 | G48: 29.10613748 | I48: 4 | J48: 32.00880335 | K48: 33.40813688 | L48: 34.80747041 | M48: 36.20680395 | N48: 37.60613748
B49: 4.25 | C49: 25.06205779 | D49: 26.55384694 | E49: 28.04563609 | F49: 29.53742525 | G49: 31.0292144 | I49: 4.25 | J49: 33.56205779 | K49: 35.05384694 | L49: 36.54563609 | M49: 38.03742525 | N49: 39.5292144
B50: 4.5 | C50: 26.61531222 | D50: 28.199557 | E50: 29.78380178 | F50: 31.36804655 | G50: 32.95229133 | I50: 4.5 | J50: 35.11531222 | K50: 36.699557 | L50: 38.28380178 | M50: 39.86804655 | N50: 41.45229133
B51: 4.75 | C51: 28.16856666 | D51: 29.84526706 | E51: 31.52196746 | F51: 33.19866785 | G51: 34.87536825 | I51: 4.75 | J51: 36.66856666 | K51: 38.34526706 | L51: 40.02196746 | M51: 41.69866785 | N51: 43.37536825
B52: 5 | C52: 29.7218211 | D52: 31.49097712 | E52: 33.26013314 | F52: 35.02928915 | G52: 36.79844517 | I52: 5 | J52: 38.2218211 | K52: 39.99097712 | L52: 41.76013314 | M52: 43.52928915 | N52: 45.29844517
B53: 5.25 | C53: 31.27507554 | D53: 33.13668718 | E53: 34.99829882 | F53: 36.85991046 | G53: 38.72152209 | I53: 5.25 | J53: 39.77507554 | K53: 41.63668718 | L53: 43.49829882 | M53: 45.35991046 | N53: 47.22152209
B54: Increment for Pecent grain (DM) in silage | G54: =G37 -> 0.025
B56: Price of Corn Silage when BUYER Pays for Harvesting Cost | I56: Price of Corn Silage when SELLER Pays for Harvesting Cost
B58: =B41 -> Corn | C58: Harvest and hauling charge, $/bu | I58: =B58 -> Corn | J58: Harvest and hauling charge, $/ton
B59: =B42 -> Price | C59: =D59-$G71 -> 0.34 | D59: =E59-$G71 -> 0.37 | E59: =N13 -> 0.4 | F59: =E59+$G71 -> 0.43 | G59: =F59+$G71 -> 0.46 | I59: =B59 -> Price | J59: =K59-$N71 -> 7.5 | K59: =L59-$N71 -> 8 | L59: =N14 -> 8.5 | M59: =L59+$N71 -> 9 | N59: =M59+$N71 -> 9.5
B60: =B43 -> ($/bu) | C60: Silage Price ($/ton) | I60: =B60 -> ($/bu) | J60: Silage Price ($/ton)
B61: =B27 -> 3 | C61: =($G$4*$B61-($N$11+$N$15)-$G$4*C$59)/$G$16 -> 19.77196746 | D61: 19.56338757 | E61: 19.35480769 | F61: 19.14622781 | G61: 18.93764793 | I61: =I27 -> 3 | J61: =($G$4*$I61-($N$11+$N$15)-$G$4*$N$13+J$59*$G$16)/$G$16 -> 26.85480769 | K61: 27.35480769 | L61: 27.85480769 | M61: 28.35480769 | N61: 28.85480769
B62: 3.25 | C62: 21.51013314 | D62: 21.30155325 | E62: 21.09297337 | F62: 20.88439349 | G62: 20.67581361 | I62: 3.25 | J62: 28.59297337 | K62: 29.09297337 | L62: 29.59297337 | M62: 30.09297337 | N62: 30.59297337
B63: 3.5 | C63: 23.24829882 | D63: 23.03971893 | E63: 22.83113905 | F63: 22.62255917 | G63: 22.41397929 | I63: 3.5 | J63: 30.33113905 | K63: 30.83113905 | L63: 31.33113905 | M63: 31.83113905 | N63: 32.33113905
B64: 3.75 | C64: 24.9864645 | D64: 24.77788462 | E64: 24.56930473 | F64: 24.36072485 | G64: 24.15214497 | I64: 3.75 | J64: 32.06930473 | K64: 32.56930473 | L64: 33.06930473 | M64: 33.56930473 | N64: 34.06930473
B65: 4 | C65: 26.72463018 | D65: 26.5160503 | E65: 26.30747041 | F65: 26.09889053 | G65: 25.89031065 | I65: 4 | J65: 33.80747041 | K65: 34.30747041 | L65: 34.80747041 | M65: 35.30747041 | N65: 35.80747041
B66: 4.25 | C66: 28.46279586 | D66: 28.25421598 | E66: 28.04563609 | F66: 27.83705621 | G66: 27.62847633 | I66: 4.25 | J66: 35.54563609 | K66: 36.04563609 | L66: 36.54563609 | M66: 37.04563609 | N66: 37.54563609
B67: 4.5 | C67: 30.20096154 | D67: 29.99238166 | E67: 29.78380178 | F67: 29.57522189 | G67: 29.36664201 | I67: 4.5 | J67: 37.28380178 | K67: 37.78380178 | L67: 38.28380178 | M67: 38.78380178 | N67: 39.28380178
B68: 4.75 | C68: 31.93912722 | D68: 31.73054734 | E68: 31.52196746 | F68: 31.31338757 | G68: 31.10480769 | I68: 4.75 | J68: 39.02196746 | K68: 39.52196746 | L68: 40.02196746 | M68: 40.52196746 | N68: 41.02196746
B69: 5 | C69: 33.6772929 | D69: 33.46871302 | E69: 33.26013314 | F69: 33.05155325 | G69: 32.84297337 | I69: 5 | J69: 40.76013314 | K69: 41.26013314 | L69: 41.76013314 | M69: 42.26013314 | N69: 42.76013314
B70: 5.25 | C70: 35.41545858 | D70: 35.2068787 | E70: 34.99829882 | F70: 34.78971893 | G70: 34.58113905 | I70: 5.25 | J70: 42.49829882 | K70: 42.99829882 | L70: 43.49829882 | M70: 43.99829882 | N70: 44.49829882
B71: Increment for Harvesting and hauling charge, $/bu | G71: 0.03 | I71: Increment for Harvesting and hauling charge, $/ton | N71: 0.5
B73: Price of Corn Silage when BUYER Pays for Harvesting Cost | I73: Price of Corn Silage when SELLER Pays for Harvesting Cost
B75: =B58 -> Corn | C75: Difference in preharvest VC, $/ac* | I75: =B75 -> Corn | J75: Difference in Preharvest VC/Acre
B76: =B59 -> Price | C76: =D76-$G89 -> -24.81654255 | D76: =E76-$G89 -> -19.81654255 | E76: =+L11+N15 -> -14.81654255 | F76: =E76+$G89 -> -9.816542553 | G76: =F76+$G89 -> -4.816542553 | I76: =B76 -> Price | J76: =C76 -> -24.81654255 | K76: =D76 -> -19.81654255 | L76: =E76 -> -14.81654255 | M76: =F76 -> -9.816542553 | N76: =G76 -> -4.816542553
B77: =B60 -> ($/bu) | C77: Silage Price ($/ton) | I77: =B77 -> ($/bu) | J77: Silage Price ($/ton)
B78: =B27 -> 3 | C78: =($G$4*$B78-C$76-$G$4*$N$13)/$G$16 -> 19.06287194 | D78: 18.86422443 | E78: 18.66557692 | F78: 18.46692942 | G78: 18.26828191 | I78: =I27 -> 3 | J78: =($G$4*$I78-J$76-$G$4*$N$13+$G$16*$N$14)/$G$16 -> 27.56287194 | K78: 27.36422443 | L78: 27.16557692 | M78: 26.96692942 | N78: 26.76828191
B79: 3.25 | C79: 20.80103762 | D79: 20.60239011 | E79: 20.4037426 | F79: 20.2050951 | G79: 20.00644759 | I79: 3.25 | J79: 29.30103762 | K79: 29.10239011 | L79: 28.9037426 | M79: 28.7050951 | N79: 28.50644759
B80: 3.5 | C80: 22.5392033 | D80: 22.34055579 | E80: 22.14190828 | F80: 21.94326078 | G80: 21.74461327 | I80: 3.5 | J80: 31.0392033 | K80: 30.84055579 | L80: 30.64190828 | M80: 30.44326078 | N80: 30.24461327
B81: 3.75 | C81: 24.27736898 | D81: 24.07872147 | E81: 23.88007396 | F81: 23.68142646 | G81: 23.48277895 | I81: 3.75 | J81: 32.77736898 | K81: 32.57872147 | L81: 32.38007396 | M81: 32.18142646 | N81: 31.98277895
B82: 4 | C82: 26.01553466 | D82: 25.81688715 | E82: 25.61823964 | F82: 25.41959214 | G82: 25.22094463 | I82: 4 | J82: 34.51553466 | K82: 34.31688715 | L82: 34.11823964 | M82: 33.91959214 | N82: 33.72094463
B83: 4.25 | C83: 27.75370034 | D83: 27.55505283 | E83: 27.35640533 | F83: 27.15775782 | G83: 26.95911031 | I83: 4.25 | J83: 36.25370034 | K83: 36.05505283 | L83: 35.85640533 | M83: 35.65775782 | N83: 35.45911031
B84: 4.5 | C84: 29.49186602 | D84: 29.29321851 | E84: 29.09457101 | F84: 28.8959235 | G84: 28.69727599 | I84: 4.5 | J84: 37.99186602 | K84: 37.79321851 | L84: 37.59457101 | M84: 37.3959235 | N84: 37.19727599
B85: 4.75 | C85: 31.2300317 | D85: 31.03138419 | E85: 30.83273669 | F85: 30.63408918 | G85: 30.43544167 | I85: 4.75 | J85: 39.7300317 | K85: 39.53138419 | L85: 39.33273669 | M85: 39.13408918 | N85: 38.93544167
B86: 5 | C86: 32.96819738 | D86: 32.76954987 | E86: 32.57090237 | F86: 32.37225486 | G86: 32.17360735 | I86: 5 | J86: 41.46819738 | K86: 41.26954987 | L86: 41.07090237 | M86: 40.87225486 | N86: 40.67360735
B87: 5.25 | C87: 34.70636306 | D87: 34.50771555 | E87: 34.30906805 | F87: 34.11042054 | G87: 33.91177303 | I87: 5.25 | J87: 43.20636306 | K87: 43.00771555 | L87: 42.80906805 | M87: 42.61042054 | N87: 42.41177303
B88: * Positve => higher cost for grain (includes phosphorus removal cost) | I88: =B88 -> * Positve => higher cost for grain (includes phosphorus removal cost)
B89: Increment for Difference in preharvest VC, $/ac | G89: 5

Sheet Sorghum
B2: Valuing Sorghum Silage
B4: Grain yield in bushels | G4: 90 | I4: Nutrient removal | K4: N | L4: P2O5 | M4: K2O
B5: Moisture content of grain at harvest | G5: 0.145 | I5: Grain, lbs/bu | K5: 0.8 | L5: 0.33 | M5: 0.26
B6: Grain yield in pounds | G6: =G4*56 -> 5040 | I6: Silage, lbs/ton | K6: 11 | L6: 3.2 | M6: 8.7
B7: Grain yield in pounds @ 100% DM | G7: =G6*(1-G5) -> 4309.2 | I7: Grain, lbs/acre | K7: =$G4*K5 -> 72 | L7: =$G4*L5 -> 29.7 | M7: =$G4*M5 -> 23.4
I8: Silage, lbs/acre | K8: =$G16*K6 -> 144.0765957 | L8: =$G16*L6 -> 41.91319149 | M8: =$G16*M6 -> 113.9514894
B9: Percent grain in silage (DM) | G9: 0.47 | I9: Price, $/lb | K9: 0.6 | L9: 0.65 | M9: 0.4
B10: Percent forage in silage (DM) | G10: =1-G9 -> 0.53 | I10: Percent to include | K10: 0 | L10: 1 | M10: 0
B11: Percent DM in silage at harvest | G11: 0.35 | I11: Difference in cost, $/acre | K11: =(K7-K8)*K9*K10 -> 0 | L11: =(L7-L8)*L9*L10 -> -7.938574468 | M11: =(M7-M8)*M9*M10 -> 0 | N11: =SUM(K11:M11) -> -7.938574468
B13: Silage yield in pounds | G13: =G6/G9 -> 10723.40426 | I13: Harvest & hauling for grain, $/bu | N13: 0.4
B14: Silage yield in pounds @ 100% DM | G14: =G7/G9 -> 9168.510638 | I14: Harvest & hauling charge for silage, $/ton | N14: 8.5
B15: Silage yield in pounds as harvested | G15: =G14/G11 -> 26195.74468 | I15: Difference in grain preharvest non-fertilizer VC/acre | N15: 0
B16: Silage yield in tons as harvested | G16: =G15/2000 -> 13.09787234
B17: Bushels of Corn per ton of silage | G17: =G4/G16 -> 6.871345029
B18: Tons of silage per bushel of Corn | G18: =G16/G4 -> 0.1455319149
B22: Price of Sorghum Silage when BUYER Pays for Harvesting Cost | I22: Price of Sorghum Silage when SELLER Pays for Harvesting Cost
B24: Sorghum | D24: Percent DM in silage | G24: Factor | I24: =B24 -> Sorghum | K24: Percent DM in silage | N24: Factor
B25: Price | C25: 0.3 | D25: =C25+$G37 -> 0.325 | E25: =D25+$G37 -> 0.35 | F25: =E25+$G37 -> 0.375 | G25: ="@ "&FIXED(D25*100,1)&"%" -> @ 32.5% | I25: Price | J25: =C25 -> 0.3 | K25: =D25 -> 0.325 | L25: =E25 -> 0.35 | M25: =F25 -> 0.375 | N25: ="@ "&FIXED(K25*100,1)&"%" -> @ 32.5%
B26: ($/bu) | C26: Silage Price ($/ton) | G26: DM | I26: ($/bu) | J26: Silage Price ($/ton) | N26: DM
B27: 2.5 | C27: =($G$4*$B27-($N$11+$N$15)-$G$4*$N$13)/($G$14/C$25/2000) -> 12.88793233 | D27: 13.96192669 | E27: 15.03592105 | F27: 16.10991541 | G27: =D27/B27 -> 5.584770677 | I27: 2.5 | J27: =($G$4*$I27-($N$11+$N$15)-$G$4*$N$13+$N$14*$G$14/J$25/2000)/($G$14/J$25/2000) -> 21.38793233 | K27: 22.46192669 | L27: 23.53592105 | M27: 24.60991541 | N27: =K27/I27 -> 8.984770677
B28: =B27+N$37 -> 2.75 | C28: 14.36036341 | D28: 15.55706036 | E28: 16.75375731 | F28: 17.95045426 | G28: 5.657112858 | I28: 2.75 | J28: 22.86036341 | K28: 24.05706036 | L28: 25.25375731 | M28: 26.45045426 | N28: 8.748021949
B29: 3 | C29: 15.83279449 | D29: 17.15219403 | E29: 18.47159357 | F29: 19.79099311 | G29: 5.717398009 | I29: 3 | J29: 24.33279449 | K29: 25.65219403 | L29: 26.97159357 | M29: 28.29099311 | N29: 8.550731342
B30: 3.25 | C30: 17.30522556 | D30: 18.74732769 | E30: 20.18942982 | F30: 21.63153195 | G30: 5.768408521 | I30: 3.25 | J30: 25.80522556 | K30: 27.24732769 | L30: 28.68942982 | M30: 30.13153195 | N30: 8.383793137
B31: 3.5 | C31: 18.77765664 | D31: 20.34246136 | E31: 21.90726608 | F31: 23.4720708 | G31: 5.812131818 | I31: 3.5 | J31: 27.27765664 | K31: 28.84246136 | L31: 30.40726608 | M31: 31.9720708 | N31: 8.240703246
B32: 3.75 | C32: 20.25008772 | D32: 21.93759503 | E32: 23.62510234 | F32: 25.31260965 | G32: 5.850025341 | I32: 3.75 | J32: 28.75008772 | K32: 30.43759503 | L32: 32.12510234 | M32: 33.81260965 | N32: 8.116692008
B33: 4 | C33: 21.7225188 | D33: 23.5327287 | E33: 25.3429386 | F33: 27.1531485 | G33: 5.883182174 | I33: 4 | J33: 30.2225188 | K33: 32.0327287 | L33: 33.8429386 | M33: 35.6531485 | N33: 8.008182174
B34: 4.25 | C34: 23.19494987 | D34: 25.12786236 | E34: 27.06077485 | F34: 28.99368734 | G34: 5.912438203 | I34: 4.25 | J34: 31.69494987 | K34: 33.62786236 | L34: 35.56077485 | M34: 37.49368734 | N34: 7.912438203
B35: 4.5 | C35: 24.66738095 | D35: 26.72299603 | E35: 28.77861111 | F35: 30.83422619 | G35: 5.938443563 | I35: 4.5 | J35: 33.16738095 | K35: 35.22299603 | L35: 37.27861111 | M35: 39.33422619 | N35: 7.827332451
B36: 4.75 | C36: 26.13981203 | D36: 28.3181297 | E36: 30.49644737 | F36: 32.67476504 | G36: 5.961711516 | I36: 4.75 | J36: 34.63981203 | K36: 36.8181297 | L36: 38.99644737 | M36: 41.17476504 | N36: 7.7511852
B37: Increment for Percent DM in silage | G37: 0.025 | I37: Increment for Sorghum Price ($/bu) | N37: 0.25
B39: Price of Sorghum Silage when BUYER Pays for Harvesting Cost | I39: Price of Sorghum Silage when SELLER Pays for Harvesting Cost
B41: =B24 -> Sorghum | D41: Percent grain (DM) in silage | I41: =B41 -> Sorghum | K41: Percent grain (DM) in silage
B42: Price | C42: =D42-$G54 -> 0.42 | D42: =E42-$G54 -> 0.445 | E42: =G9 -> 0.47 | F42: =E42+G54 -> 0.495 | G42: =F42+G54 -> 0.52 | I42: =B42 -> Price | J42: =C42 -> 0.42 | K42: =D42 -> 0.445 | L42: =E42 -> 0.47 | M42: =F42 -> 0.495 | N42: =G42 -> 0.52
B43: ($/bu) | C43: Silage Price ($/ton) | I43: =B43 -> ($/bu) | J43: Silage Price ($/ton)
B44: 2.5 | C44: =($G$4*$B44-($N$11+$N$15)-$G$4*$N$13)/($G$7/C$42/$G$11/2000) -> 13.43635498 | D44: 14.23613802 | E44: 15.03592105 | F44: 15.83570409 | G44: 16.63548712 | I44: =I27 -> 2.5 | J44: =($G$4*$I44-($N$11+$N$15)-$G$4*$N$13+$N$14*$G$7/C$42/$G$11/2000)/($G$7/J$42/$G$11/2000) -> 21.93635498 | K44: =($G$4*$I44-($N$11+$N$15)-$G$4*$N$13+$N$14*$G$7/D$42/$G$11/2000)/($G$7/K$42/$G$11/2000) -> 22.73613802 | L44: =($G$4*$I44-($N$11+$N$15)-$G$4*$N$13+$N$14*$G$7/E$42/$G$11/2000)/($G$7/L$42/$G$11/2000) -> 23.53592105 | M44: =($G$4*$I44-($N$11+$N$15)-$G$4*$N$13+$N$14*$G$7/F$42/$G$11/2000)/($G$7/M$42/$G$11/2000) -> 24.33570409 | N44: =($G$4*$I44-($N$11+$N$15)-$G$4*$N$13+$N$14*$G$7/G$42/$G$11/2000)/($G$7/N$42/$G$11/2000) -> 25.13548712
B45: 2.75 | C45: 14.9714427 | D45: 15.86260001 | E45: 16.75375731 | F45: 17.64491461 | G45: 18.53607192 | I45: 2.75 | J45: 23.4714427 | K45: 24.36260001 | L45: 25.25375731 | M45: 26.14491461 | N45: 27.03607192
B46: 3 | C46: 16.50653042 | D46: 17.48906199 | E46: 18.47159357 | F46: 19.45412514 | G46: 20.43665671 | I46: 3 | J46: 25.00653042 | K46: 25.98906199 | L46: 26.97159357 | M46: 27.95412514 | N46: 28.93665671
B47: 3.25 | C47: 18.04161814 | D47: 19.11552398 | E47: 20.18942982 | F47: 21.26333567 | G47: 22.33724151 | I47: 3.25 | J47: 26.54161814 | K47: 27.61552398 | L47: 28.68942982 | M47: 29.76333567 | N47: 30.83724151
B48: 3.5 | C48: 19.57670586 | D48: 20.74198597 | E48: 21.90726608 | F48: 23.07254619 | G48: 24.2378263 | I48: 3.5 | J48: 28.07670586 | K48: 29.24198597 | L48: 30.40726608 | M48: 31.57254619 | N48: 32.7378263
B49: 3.75 | C49: 21.11179358 | D49: 22.36844796 | E49: 23.62510234 | F49: 24.88175672 | G49: 26.1384111 | I49: 3.75 | J49: 29.61179358 | K49: 30.86844796 | L49: 32.12510234 | M49: 33.38175672 | N49: 34.6384111
B50: 4 | C50: 22.6468813 | D50: 23.99490995 | E50: 25.3429386 | F50: 26.69096725 | G50: 28.03899589 | I50: 4 | J50: 31.1468813 | K50: 32.49490995 | L50: 33.8429386 | M50: 35.19096725 | N50: 36.53899589
B51: 4.25 | C51: 24.18196902 | D51: 25.62137194 | E51: 27.06077485 | F51: 28.50017777 | G51: 29.93958069 | I51: 4.25 | J51: 32.68196902 | K51: 34.12137194 | L51: 35.56077485 | M51: 37.00017777 | N51: 38.43958069
B52: 4.5 | C52: 25.71705674 | D52: 27.24783392 | E52: 28.77861111 | F52: 30.3093883 | G52: 31.84016548 | I52: 4.5 | J52: 34.21705674 | K52: 35.74783392 | L52: 37.27861111 | M52: 38.8093883 | N52: 40.34016548
B53: 4.75 | C53: 27.25214446 | D53: 28.87429591 | E53: 30.49644737 | F53: 32.11859882 | G53: 33.74075028 | I53: 4.75 | J53: 35.75214446 | K53: 37.37429591 | L53: 38.99644737 | M53: 40.61859882 | N53: 42.24075028
B54: Increment for Pecent grain (DM) in silage | G54: =G37 -> 0.025
B56: Price of Sorghum Silage when BUYER Pays for Harvesting Cost | I56: Price of Sorghum Silage when SELLER Pays for Harvesting Cost
B58: =B41 -> Sorghum | C58: Harvest and hauling charge, $/bu | I58: =B58 -> Sorghum | J58: Harvest and hauling charge, $/ton
B59: =B42 -> Price | C59: =D59-$G71 -> 0.34 | D59: =E59-$G71 -> 0.37 | E59: =N13 -> 0.4 | F59: =E59+$G71 -> 0.43 | G59: =F59+$G71 -> 0.46 | I59: =B59 -> Price | J59: =K59-$N71 -> 7.5 | K59: =L59-$N71 -> 8 | L59: =N14 -> 8.5 | M59: =L59+$N71 -> 9 | N59: =M59+$N71 -> 9.5
B60: =B43 -> ($/bu) | C60: Silage Price ($/ton) | I60: =B60 -> ($/bu) | J60: Silage Price ($/ton)
B61: =B27 -> 2.5 | C61: =($G$4*$B61-($N$11+$N$15)-$G$4*C$59)/$G$16 -> 15.44820175 | D61: 15.2420614 | E61: 15.03592105 | F61: 14.8297807 | G61: 14.62364035 | I61: =I27 -> 2.5 | J61: =($G$4*$I61-($N$11+$N$15)-$G$4*$N$13+J$59*$G$16)/$G$16 -> 22.53592105 | K61: 23.03592105 | L61: 23.53592105 | M61: 24.03592105 | N61: 24.53592105
B62: 2.75 | C62: 17.16603801 | D62: 16.95989766 | E62: 16.75375731 | F62: 16.54761696 | G62: 16.34147661 | I62: 2.75 | J62: 24.25375731 | K62: 24.75375731 | L62: 25.25375731 | M62: 25.75375731 | N62: 26.25375731
B63: 3 | C63: 18.88387427 | D63: 18.67773392 | E63: 18.47159357 | F63: 18.26545322 | G63: 18.05931287 | I63: 3 | J63: 25.97159357 | K63: 26.47159357 | L63: 26.97159357 | M63: 27.47159357 | N63: 27.97159357
B64: 3.25 | C64: 20.60171053 | D64: 20.39557018 | E64: 20.18942982 | F64: 19.98328947 | G64: 19.77714912 | I64: 3.25 | J64: 27.68942982 | K64: 28.18942982 | L64: 28.68942982 | M64: 29.18942982 | N64: 29.68942982
B65: 3.5 | C65: 22.31954678 | D65: 22.11340643 | E65: 21.90726608 | F65: 21.70112573 | G65: 21.49498538 | I65: 3.5 | J65: 29.40726608 | K65: 29.90726608 | L65: 30.40726608 | M65: 30.90726608 | N65: 31.40726608
B66: 3.75 | C66: 24.03738304 | D66: 23.83124269 | E66: 23.62510234 | F66: 23.41896199 | G66: 23.21282164 | I66: 3.75 | J66: 31.12510234 | K66: 31.62510234 | L66: 32.12510234 | M66: 32.62510234 | N66: 33.12510234
B67: 4 | C67: 25.7552193 | D67: 25.54907895 | E67: 25.3429386 | F67: 25.13679825 | G67: 24.93065789 | I67: 4 | J67: 32.8429386 | K67: 33.3429386 | L67: 33.8429386 | M67: 34.3429386 | N67: 34.8429386
B68: 4.25 | C68: 27.47305556 | D68: 27.2669152 | E68: 27.06077485 | F68: 26.8546345 | G68: 26.64849415 | I68: 4.25 | J68: 34.56077485 | K68: 35.06077485 | L68: 35.56077485 | M68: 36.06077485 | N68: 36.56077485
B69: 4.5 | C69: 29.19089181 | D69: 28.98475146 | E69: 28.77861111 | F69: 28.57247076 | G69: 28.36633041 | I69: 4.5 | J69: 36.27861111 | K69: 36.77861111 | L69: 37.27861111 | M69: 37.77861111 | N69: 38.27861111
B70: 4.75 | C70: 30.90872807 | D70: 30.70258772 | E70: 30.49644737 | F70: 30.29030702 | G70: 30.08416667 | I70: 4.75 | J70: 37.99644737 | K70: 38.49644737 | L70: 38.99644737 | M70: 39.49644737 | N70: 39.99644737
B71: Increment for Harvesting and hauling charge, $/bu | G71: 0.03 | I71: Increment for Harvesting and hauling charge, $/ton | N71: 0.5
B73: Price of Sorghum Silage when BUYER Pays for Harvesting Cost | I73: Price of Sorghum Silage when SELLER Pays for Harvesting Cost
B75: =B58 -> Sorghum | C75: Difference in preharvest VC, $/ac* | I75: =B75 -> Sorghum | J75: Difference in Preharvest VC/Acre
B76: =B59 -> Price | C76: =D76-$G89 -> -17.93857447 | D76: =E76-$G89 -> -12.93857447 | E76: =+L11+N15 -> -7.938574468 | F76: =E76+$G89 -> -2.938574468 | G76: =F76+$G89 -> 2.061425532 | I76: =B76 -> Price | J76: =C76 -> -17.93857447 | K76: =D76 -> -12.93857447 | L76: =E76 -> -7.938574468 | M76: =F76 -> -2.938574468 | N76: =G76 -> 2.061425532
B77: =B60 -> ($/bu) | C77: Silage Price ($/ton) | I77: =B77 -> ($/bu) | J77: Silage Price ($/ton)
B78: =B27 -> 2.5 | C78: =($G$4*$B78-C$76-$G$4*$N$13)/$G$16 -> 15.79940383 | D78: 15.41766244 | E78: 15.03592105 | F78: 14.65417966 | G78: 14.27243827 | I78: =I27 -> 2.5 | J78: =($G$4*$I78-J$76-$G$4*$N$13+$G$16*$N$14)/$G$16 -> 24.29940383 | K78: 23.91766244 | L78: 23.53592105 | M78: 23.15417966 | N78: 22.77243827
B79: 2.75 | C79: 17.51724009 | D79: 17.1354987 | E79: 16.75375731 | F79: 16.37201592 | G79: 15.99027453 | I79: 2.75 | J79: 26.01724009 | K79: 25.6354987 | L79: 25.25375731 | M79: 24.87201592 | N79: 24.49027453
B80: 3 | C80: 19.23507635 | D80: 18.85333496 | E80: 18.47159357 | F80: 18.08985218 | G80: 17.70811079 | I80: 3 | J80: 27.73507635 | K80: 27.35333496 | L80: 26.97159357 | M80: 26.58985218 | N80: 26.20811079
B81: 3.25 | C81: 20.95291261 | D81: 20.57117122 | E81: 20.18942982 | F81: 19.80768843 | G81: 19.42594704 | I81: 3.25 | J81: 29.45291261 | K81: 29.07117122 | L81: 28.68942982 | M81: 28.30768843 | N81: 27.92594704
B82: 3.5 | C82: 22.67074886 | D82: 22.28900747 | E82: 21.90726608 | F82: 21.52552469 | G82: 21.1437833 | I82: 3.5 | J82: 31.17074886 | K82: 30.78900747 | L82: 30.40726608 | M82: 30.02552469 | N82: 29.6437833
B83: 3.75 | C83: 24.38858512 | D83: 24.00684373 | E83: 23.62510234 | F83: 23.24336095 | G83: 22.86161956 | I83: 3.75 | J83: 32.88858512 | K83: 32.50684373 | L83: 32.12510234 | M83: 31.74336095 | N83: 31.36161956
B84: 4 | C84: 26.10642138 | D84: 25.72467999 | E84: 25.3429386 | F84: 24.96119721 | G84: 24.57945582 | I84: 4 | J84: 34.60642138 | K84: 34.22467999 | L84: 33.8429386 | M84: 33.46119721 | N84: 33.07945582
B85: 4.25 | C85: 27.82425763 | D85: 27.44251624 | E85: 27.06077485 | F85: 26.67903346 | G85: 26.29729207 | I85: 4.25 | J85: 36.32425763 | K85: 35.94251624 | L85: 35.56077485 | M85: 35.17903346 | N85: 34.79729207
B86: 4.5 | C86: 29.54209389 | D86: 29.1603525 | E86: 28.77861111 | F86: 28.39686972 | G86: 28.01512833 | I86: 4.5 | J86: 38.04209389 | K86: 37.6603525 | L86: 37.27861111 | M86: 36.89686972 | N86: 36.51512833
B87: 4.75 | C87: 31.25993015 | D87: 30.87818876 | E87: 30.49644737 | F87: 30.11470598 | G87: 29.73296459 | I87: 4.75 | J87: 39.75993015 | K87: 39.37818876 | L87: 38.99644737 | M87: 38.61470598 | N87: 38.23296459
B88: * Positve => higher cost for grain (includes phosphorus removal cost) | I88: =B88 -> * Positve => higher cost for grain (includes phosphorus removal cost)
B89: Increment for Difference in preharvest VC, $/ac | G89: 5
